bitfinex-derivatives/quotes_ETHF0:USTF0_20210402
["timestamp","ask_amount","ask_price","bid_price","bid_amount"]
[1617346265766,0.46648393,1997.9,1996.8,34.59775]
[1617346265966,0.46648393,1997.9,1997.8,2.90695]
[1617346266166,1.45578393,1997.9,1997.8,4.18995]
[1617346266766,0.46648393,1997.9,1997.8,4.18995]
[1617346267368,0.46648393,1997.9,1997.8,2.90695]
[1617346268767,1.69069302,1998.0,1997.8,2.90695]
[1617346268968,0.70029302,1998.0,1997.8,2.90695]
[1617346269169,0.46685898,1997.9,1997.8,2.90695]
[1617346270570,0.46677871,1998.1,1997.8,2.90695]
[1617346270772,0.05834674,1997.9,1997.8,4.12705]
[1617346270971,0.46677389,1998.2,1997.8,4.12705]
[1617346271971,0.46677389,1998.2,1998.1,2.90695]
[1617346274672,3.60739538,1998.3,1998.1,2.90695]
[1617346275973,0.4669544,1998.2,1998.1,2.90695]
[1617346277274,15.4177316,1998.4,1998.1,2.90695]
[1617346277275,0.70069691,1998.3,1998.1,2.90695]
[1617346277877,0.70069691,1998.3,1998.2,2.0]
[1617346278076,0.9949,1998.3,1998.2,32.0]
[1617346278279,4.259,1998.4,1998.2,32.0]
[1617346278680,4.72606913,1998.4,1998.2,32.0]
[1617346278980,0.93413827,1998.8,1998.2,32.0]
[1617346279181,0.93413827,1998.8,1998.4,65.3986]
[1617346279386,1.16745149,1999.2,1998.5,30.0]
[1617346279581,9.92385149,1999.3,1998.5,30.0]
[1617346279983,5.70815149,1999.3,1998.6,2.0]
[1617346280181,1.49255149,1999.3,1999.2,2.90695]
[1617346281184,0.04995149,1999.3,1999.2,2.90695]
[1617346281987,4.9526165,1999.9,1999.2,2.90695]
[1617346284091,4.9526165,1999.9,1999.8,2.90695]
[1617346285394,2.90695,1999.9,1999.8,2.90695]
[1617346288798,16.98375,1999.9,1999.8,2.90695]
[1617346294510,16.98375,1999.9,1998.9,78.0677]
[1617346294715,19.02617269,1999.9,1998.9,78.0677]
[1617346296313,16.11922269,1999.9,1999.4,2.90695]
[1617346297015,14.0768,1999.9,1999.4,2.90695]
[1617346297413,16.11861776,1999.9,1999.4,2.90695]
[1617346298313,2.90695,1999.5,1999.4,2.90695]
[1617346298513,5.88705,1999.5,1999.4,2.90695]
[1617346299616,5.88705,1999.5,1996.5,1.1]
[1617346299617,5.88705,1999.5,1997.6,30.0]
[1617346299816,5.88705,1999.5,1997.7,30.0]
[1617346300016,65.4802,1999.3,1997.7,30.0]
[1617346300216,65.4802,1999.3,1998.9,2.90695]
[1617346300615,2.0,1999.2,1998.9,2.90695]
[1617346300815,4.34340422,1999.2,1998.9,2.90695]
[1617346301016,13.885,1999.1,1998.9,2.90695]
[1617346301216,15.7126,1999.1,1998.9,2.90695]
[1617346301616,1.17929293,1999.0,1998.9,2.90695]
[1617346302217,4.08624293,1999.0,1998.9,2.90695]
[1617346303719,4.08624293,1999.0,1998.6,70.7773]
[1617346303920,5.25041033,1999.0,1998.6,70.7773]
[1617346304319,2.90695,1998.7,1998.6,70.7773]
[1617346304519,4.39085,1998.7,1998.6,70.7773]
[1617346305119,4.39085,1998.7,1998.5,2.90695]
[1617346308320,4.39085,1998.7,1997.7,77.005]
[1617346308721,34.39085,1998.7,1997.7,77.005]
[1617346309324,3.17949357,1998.6,1997.7,77.005]
[1617346309523,33.17949357,1998.6,1997.7,77.005]
[1617346309723,1.81615442,1998.5,1997.7,77.005]
[1617346310124,2.99566716,1998.5,1997.7,77.005]
[1617346310323,2.0,1998.4,1998.0,2.90695]
[1617346310523,2.0,1998.4,1997.7,77.005]
[1617346310922,14.82873905,1998.3,1997.7,77.005]
[1617346311323,13.9441,1998.3,1997.7,77.005]
[1617346311925,15.4089,1998.3,1997.7,77.005]
[1617346312324,15.4089,1998.3,1998.1,2.90695]
[1617346314227,15.4089,1998.3,1997.7,77.005]
[1617346314428,2.90695,1997.8,1997.7,77.005]
[1617346314627,4.33065,1997.8,1997.6,2.90695]
[1617346316430,4.62186369,1997.8,1997.6,2.90695]
[1617346318532,4.33065,1997.8,1997.6,2.90695]
[1617346320235,1.4237,1997.8,1997.6,2.90695]
[1617346320434,0.29119381,1998.0,1997.6,2.90695]
[1617346321436,0.29117021,1998.1,1997.6,2.90695]
[1617346321937,3.1981169,1998.2,1997.6,2.90695]
[1617346322136,0.2911669,1998.2,1997.6,2.90695]
[1617346322336,0.29133542,1998.1,1997.4,77.1634]
[1617346324338,0.29133542,1998.1,1997.4,75.7367]
[1617346324538,0.29133542,1998.1,1998.0,2.90695]
[1617346325138,0.29132974,1998.2,1998.0,2.90695]
[1617346325939,1.29252974,1998.2,1998.0,2.90695]
[1617346326138,13.9441,1998.3,1998.0,2.90695]
[1617346326139,14.23541305,1998.3,1998.0,2.90695]
[1617346326439,14.23541305,1998.3,1998.2,2.90695]
[1617346328340,13.9441,1998.3,1998.2,2.90695]
[1617346328841,13.97322763,1998.3,1998.2,67.27905]
[1617346329040,13.97322763,1998.3,1998.2,68.49675]
[1617346329843,14.97462763,1998.3,1998.2,68.49675]
[1617346330043,13.97322763,1998.3,1998.2,68.49675]
[1617346330245,13.9441,1998.3,1998.2,68.49675]
[1617346337952,13.9441,1998.3,1998.2,70.49675]
[1617346338852,13.9441,1998.3,1998.2,100.49675]
[1617346339454,13.9441,1998.3,1998.2,98.49675]
[1617346343061,13.9441,1998.3,1998.2,36.12465]
[1617346344081,0.02913769,1998.8,1998.2,36.12465]
[1617346344265,0.02913707,1998.9,1998.2,36.12465]
[1617346344465,0.02913707,1998.9,1998.8,76.4369]
[1617346344665,0.02913748,1999.0,1998.8,111.34965]
[1617346345163,0.7019071,1999.0,1998.8,111.34965]
[1617346346563,0.7019071,1999.0,1998.8,4.91275]
[1617346346765,0.7019071,1999.0,1998.8,2.90695]
[1617346347167,0.7018445,1998.9,1998.8,2.90695]
[1617346347563,0.88424255,1998.9,1998.8,2.90695]
[1617346347965,0.93580992,1999.0,1998.8,2.90695]
[1617346348165,0.93580992,1999.0,1998.9,79.2108]
[1617346348365,0.93580539,1999.1,1998.9,79.2108]
[1617346348665,0.93580539,1999.1,1999.0,2.90695]
[1617346351168,0.7018092,1999.1,1999.0,2.90695]
[1617346351570,0.93575532,1999.2,1999.0,2.90695]
[1617346352171,0.93576482,1999.1,1999.0,2.90695]
[1617346352568,1.8199705,1999.1,1999.0,2.90695]
[1617346352969,0.93576482,1999.1,1999.0,2.90695]
[1617346354872,4.07674863,1999.2,1999.0,2.90695]
[1617346355073,15.21295963,1999.1,1999.0,2.90695]
[1617346355474,16.39198068,1999.1,1999.0,2.90695]
[1617346357277,17.32809029,1999.1,1999.0,2.90695]
[1617346357678,16.39198068,1999.1,1999.0,2.90695]
[1617346361083,17.56248389,1999.1,1999.0,2.90695]
[1617346363386,16.67822426,1999.1,1999.0,2.90695]
[1617346365298,15.50772105,1999.1,1999.0,2.90695]
[1617346367197,15.50772105,1999.1,1998.4,63.3259]
[1617346367397,15.50772105,1999.1,1996.4,1.2877]
[1617346367597,0.02927273,1997.6,1997.1,63.3605]
[1617346367799,1.97707273,1997.6,1997.1,63.3605]
[1617346368000,0.02927425,1997.4,1997.1,63.3605]
[1617346368897,0.02927425,1997.4,1997.3,2.90695]
[1617346369099,0.02927776,1997.5,1997.3,2.90695]
[1617346369499,0.1463888,1997.7,1997.3,2.90695]
[1617346369500,0.02927787,1997.4,1997.3,2.90695]
[1617346369699,0.02927809,1997.5,1997.3,2.90695]
[1617346370099,0.02927863,1997.4,1997.3,2.90695]
[1617346370500,0.02927842,1997.5,1997.3,32.90695]
[1617346372000,14.34308417,1997.8,1997.3,32.90695]
[1617346372001,0.02927719,1997.6,1997.3,32.90695]
[1617346372814,0.02927701,1997.5,1997.3,32.90695]
[1617346373004,0.02927701,1997.5,1997.3,30.0]
[1617346375007,0.02927701,1997.5,1997.4,2.90695]
[1617346377517,0.02927701,1997.5,1997.4,32.90695]
[1617346378317,0.02927589,1997.6,1997.4,32.90695]
[1617346379717,0.02929537,1997.5,1997.4,32.90695]
[1617346384226,0.02929537,1997.5,1997.4,111.36165]
[1617346385323,0.14647687,1997.7,1997.4,111.36165]
[1617346385324,0.14648425,1997.6,1997.4,111.36165]
[1617346386123,0.02929704,1997.5,1997.4,111.36165]
[1617346386425,0.14648684,1997.6,1997.4,111.36165]
[1617346386623,0.14648684,1997.6,1997.4,81.36165]
[1617346387025,2.90695,1997.5,1997.4,81.36165]
[1617346387226,3.19995833,1997.5,1997.4,81.36165]
[1617346387625,2.90695,1997.5,1997.4,81.36165]
[1617346388025,1.2624,1997.6,1997.4,81.36165]
[1617346388826,0.70323999,1997.7,1997.4,81.36165]
[1617346389027,0.70323999,1997.7,1997.6,2.90695]
[1617346389227,17.66049497,1997.8,1997.6,2.90695]
[1617346389427,0.70324391,1997.7,1997.6,2.90695]
[1617346391934,17.89531043,1997.8,1997.6,2.90695]
[1617346392233,0.9380577,1997.7,1997.6,2.90695]
[1617346392635,17.89529155,1997.8,1997.6,2.90695]
[1617346394135,0.93807476,1997.7,1997.6,2.90695]
[1617346397540,18.12989055,1997.8,1997.6,2.90695]
[1617346399644,0.93809722,1997.7,1997.6,2.90695]
[1617346400747,18.13004078,1997.8,1997.6,2.90695]
[1617346401550,1.17283482,1997.7,1997.6,2.90695]
[1617346401953,19.01271208,1997.8,1997.6,2.90695]
[1617346402353,1.17194472,1997.7,1997.6,2.90695]
[1617346404656,11.0,1997.7,1997.6,2.90695]
[1617346405056,12.1719386,1997.7,1997.6,2.90695]
[1617346408458,11.0,1997.7,1997.6,2.90695]
[1617346409159,12.17197694,1997.7,1997.6,2.90695]
[1617346409461,11.0,1997.7,1997.6,2.90695]
[1617346410261,12.17195043,1997.7,1997.6,2.90695]
[1617346410661,11.0,1997.7,1997.6,2.90695]
[1617346413165,11.93718075,1997.7,1997.6,2.90695]
[1617346414966,11.0,1997.7,1997.6,2.90695]
[1617346415366,11.70282305,1997.7,1997.6,2.90695]
[1617346417368,11.0,1997.7,1997.6,2.90695]
[1617346417667,0.46848027,1997.7,1997.6,2.90695]
[1617346417868,13.0685,1997.8,1997.6,32.90695]
[1617346418067,0.29279527,1997.7,1997.6,32.90695]
[1617346418267,9.81849527,1997.8,1997.6,32.90695]
[1617346418468,0.70270865,1998.0,1997.6,32.90695]
[1617346419069,0.93688231,1998.3,1998.0,75.8773]
[1617346419271,0.93688231,1998.3,1998.0,77.5268]
[1617346419470,0.93688231,1998.3,1998.2,2.90695]
[1617346420371,8.231e-05,1998.3,1998.2,2.90695]
[1617346420571,0.88452662,1998.3,1998.2,2.90695]
[1617346420971,0.88450516,1998.4,1998.2,2.90695]
[1617346421172,0.88449564,1998.3,1998.2,2.90695]
[1617346421571,1.17104841,1998.6,1998.2,32.90695]
[1617346421972,1.17099465,1998.7,1998.6,56.40523544]
[1617346422172,2.93041412,1999.1,1998.6,88.06643544]
[1617346422373,2.05212388,1999.1,1998.6,88.06643544]
[1617346423373,2.05212388,1999.1,1999.0,2.90695]
[1617346423572,2.05212388,1999.1,1999.0,4.44235]
[1617346424375,5.83814527,1999.2,1999.0,4.44235]
[1617346424572,5.83814527,1999.2,1999.0,2.90695]
[1617346424773,2.05272275,1999.1,1999.0,2.90695]
[1617346425175,5.83816741,1999.2,1999.0,2.90695]
[1617346425375,5.83816741,1999.2,1999.0,4.77225]
[1617346425582,2.05208268,1999.1,1999.0,4.77225]
[1617346425782,4.9590136,1999.2,1999.0,4.77225]
[1617346429283,4.9590136,1999.2,1999.0,2.90695]
[1617346436989,2.05342795,1999.1,1999.0,2.90695]
[1617346442194,4.96031043,1999.2,1999.0,2.90695]
[1617346442896,11.17162426,1999.1,1999.0,2.90695]
[1617346444296,10.0,1999.1,1999.0,2.90695]
[1617346447103,11.17152938,1999.1,1999.0,2.90695]
[1617346447504,11.17910536,1999.1,1999.0,2.90695]
[1617346447903,10.0,1999.1,1999.0,2.90695]
[1617346448203,11.17910248,1999.1,1999.0,2.90695]
[1617346450609,13.23298014,1999.1,1999.0,2.90695]
[1617346451411,11.17910248,1999.1,1999.0,2.90695]
[1617346452812,14.11219704,1999.1,1999.0,2.90695]
[1617346453012,11.17910248,1999.1,1999.0,2.90695]
[1617346454612,14.11224448,1999.1,1999.0,2.90695]
[1617346454914,11.17910248,1999.1,1999.0,2.90695]
[1617346456114,11.17910248,1999.1,1999.0,4.48715]
[1617346456517,13.23345151,1999.1,1999.0,4.48715]
[1617346457317,13.23345151,1999.1,1999.0,86.98655]
[1617346457917,13.23345151,1999.1,1999.0,4.48715]
[1617346459819,13.23345151,1999.1,1999.0,2.90695]
[1617346460320,11.17910248,1999.1,1999.0,2.90695]
[1617346461321,13.23277121,1999.1,1999.0,2.90695]
[1617346467025,15.12437121,1999.1,1999.0,2.90695]
[1617346467229,13.07070248,1999.1,1999.0,2.90695]
[1617346468028,13.07070248,1999.1,1998.8,2.90695]
[1617346468527,2.05399781,1998.9,1998.8,2.90695]
[1617346468927,0.88438924,1999.0,1998.8,2.90695]
[1617346468928,4.11754942,1999.0,1998.8,2.90695]
[1617346470129,2.90695,1998.9,1998.8,2.90695]
[1617346470330,3.79133765,1998.9,1998.8,2.90695]
[1617346471232,4.96290748,1998.9,1998.8,2.90695]
[1617346473336,3.79133765,1998.9,1998.8,2.90695]
[1617346475437,5.8445498,1998.9,1998.8,2.90695]
[1617346477939,4.96016215,1998.9,1998.8,2.90695]
[1617346479943,2.90695,1998.9,1998.8,2.90695]
[1617346484951,4.9604457,1998.9,1998.8,2.90695]
[1617346487157,2.90695,1998.9,1998.8,2.90695]
[1617346487454,4.96050992,1998.9,1998.8,2.90695]
[1617346488154,6.40640992,1998.9,1998.8,2.90695]
[1617346488569,4.35285,1998.9,1998.8,2.90695]
[1617346490057,7.28658276,1998.9,1998.8,2.90695]
[1617346490456,4.35285,1998.9,1998.8,2.90695]
[1617346490857,7.28659218,1998.9,1998.4,82.5328]
[1617346491257,7.28659218,1998.9,1997.0,30.0]
[1617346491457,70.8881,1998.8,1997.3,56.9425]
[1617346491658,0.02930874,1997.5,1997.3,56.9425]
[1617346492059,0.02930874,1997.5,1997.4,2.90695]
[1617346492259,0.14672563,1997.5,1997.4,2.90695]
[1617346492662,14.3783,1997.6,1997.4,2.90695]
[1617346493262,0.14672815,1997.5,1997.4,2.90695]
[1617346493664,14.3783,1997.6,1997.4,2.90695]
[1617346494165,0.14672534,1997.5,1997.4,2.90695]
[1617346494365,0.14672534,1997.5,1997.4,32.90695]
[1617346496969,0.14672534,1997.5,1997.4,2.90695]
[1617346497971,0.14672534,1997.5,1997.4,32.90695]
[1617346500479,0.14672534,1997.5,1997.4,2.90695]
[1617346503177,0.70622301,1997.5,1997.4,2.90695]
[1617346506677,15.31995199,1997.6,1997.4,2.90695]
[1617346509486,0.9416548,1997.5,1997.4,2.90695]
[1617346509880,15.31995732,1997.6,1997.4,2.90695]
[1617346510581,0.94165605,1997.5,1997.4,2.90695]
[1617346512383,15.55543815,1997.6,1997.4,2.90695]
[1617346512784,0.94114388,1997.5,1997.4,2.90695]
[1617346513184,15.55475768,1997.6,1997.4,2.90695]
[1617346517693,1.17631671,1997.5,1997.4,2.90695]
[1617346519594,15.55462113,1997.6,1997.4,2.90695]
[1617346520496,1.17631118,1997.5,1997.4,2.90695]
[1617346521302,15.55462329,1997.6,1997.4,2.90695]
[1617346521497,1.17633499,1997.5,1997.4,2.90695]
[1617346523699,15.55460455,1997.6,1997.4,2.90695]
[1617346524099,1.17629203,1997.5,1997.4,2.90695]
[1617346524402,0.94026637,1997.5,1997.4,2.90695]
[1617346524802,15.55366223,1997.6,1997.4,2.90695]
[1617346525201,1.17540467,1997.5,1997.4,2.90695]
[1617346525802,16.43823182,1997.6,1997.4,2.90695]
[1617346526301,2.90695,1997.5,1997.4,2.90695]
[1617346526502,32.90695,1997.5,1997.4,2.90695]
[1617346526703,91.62735,1997.5,1997.4,2.90695]
[1617346526905,96.34643688,1997.5,1997.4,2.90695]
[1617346527307,101.28830231,1997.5,1997.4,2.90695]
[1617346527805,101.28830231,1997.5,1996.0,58.7204]
[1617346528207,98.34643688,1997.5,1996.0,58.7204]
[1617346528406,95.43948688,1997.5,1997.0,2.90695]
[1617346528706,2.06034462,1997.2,1997.0,2.90695]
[1617346528907,34.04534462,1997.2,1997.0,2.90695]
[1617346529109,2.06041765,1997.1,1997.0,2.90695]
[1617346529307,6.78007914,1997.1,1997.0,2.90695]
[1617346529507,21.05387914,1997.1,1997.0,2.90695]
[1617346529708,14.2738,1997.1,1997.0,2.90695]
[1617346530009,16.33423346,1997.1,1997.0,2.90695]
[1617346530412,17.18075,1997.1,1997.0,2.90695]
[1617346531009,47.18075,1997.1,1997.0,2.90695]
[1617346531210,19.24117435,1997.1,1997.0,2.90695]
[1617346531610,19.24117435,1997.1,1996.0,58.7204]
[1617346531611,17.18075,1997.1,1996.0,56.62735]
[1617346531808,19.24117521,1997.1,1996.0,56.62735]
[1617346532208,0.1469637,1996.1,1996.0,56.62735]
[1617346532408,0.1469637,1996.1,1996.0,59.5343]
[1617346533711,14.1597,1996.2,1996.0,59.5343]
[1617346536112,0.02931016,1996.1,1996.0,59.5343]
[1617346538314,0.02931016,1996.1,1996.0,2.90695]
[1617346540517,2.93626016,1996.1,1996.0,2.90695]
[1617346540718,2.96557189,1996.1,1996.0,2.90695]
[1617346541724,3.0535094,1996.1,1996.0,2.90695]
[1617346542122,74.4892696,1996.1,1996.0,2.90695]
[1617346543621,74.02025,1996.1,1996.0,2.90695]
[1617346543822,74.48928659,1996.1,1996.0,2.90695]
[1617346544022,104.48928659,1996.1,1996.0,2.90695]
[1617346544224,74.48928659,1996.1,1996.0,2.90695]
[1617346544726,74.02025,1996.1,1996.0,2.90695]
[1617346545824,74.48915215,1996.1,1996.0,2.90695]
[1617346546025,74.10788124,1996.1,1996.0,2.90695]
[1617346546224,2.99458124,1996.1,1996.0,2.90695]
[1617346546626,32.96537083,1996.1,1996.0,2.90695]
[1617346547427,2.96537083,1996.1,1996.0,2.90695]
[1617346547827,2.90695,1996.1,1996.0,2.90695]
[1617346548227,2.96537135,1996.1,1996.0,2.90695]
[1617346549731,2.93616016,1996.1,1996.0,2.90695]
[1617346550732,0.02921016,1996.1,1996.0,2.90695]
[1617346551132,14.18890795,1996.2,1996.0,2.90695]
[1617346551534,14.1597,1996.2,1996.0,2.90695]
[1617346557438,14.1597,1996.2,1996.1,2.0]
[1617346557640,14.1597,1996.2,1996.1,32.0]
[1617346558641,5.6423,1996.2,1996.1,32.0]
[1617346558841,14.0247,1996.4,1996.1,32.0]
[1617346559445,14.2522,1996.8,1996.1,32.0]
[1617346560646,14.2522,1996.8,1996.7,2.90695]
[1617346560844,14.2522,1996.8,1996.7,6.15895]
[1617346561045,0.02919623,1997.3,1996.7,6.15895]
[1617346561246,0.02919623,1997.3,1997.2,78.2652]
[1617346561447,0.02919623,1997.3,1997.2,79.5158]
[1617346561647,0.05839246,1997.4,1997.2,79.5158]
[1617346561648,0.02919496,1997.4,1997.2,79.5158]
[1617346562646,0.02919496,1997.4,1997.3,2.90695]
[1617346563250,0.0584279,1997.4,1997.3,2.90695]
[1617346565350,0.02921338,1997.4,1997.3,2.90695]
[1617346566850,0.02921338,1997.4,1997.3,4.90695]
[1617346569253,0.01460784,1997.4,1997.3,4.90695]
[1617346572858,0.01460646,1997.6,1997.3,4.90695]
[1617346574056,0.01461318,1997.4,1997.3,4.90695]
[1617346575359,0.01461331,1997.5,1997.3,4.90695]
[1617346575756,0.01461339,1997.4,1997.3,4.90695]
[1617346581260,0.01461507,1997.5,1997.3,34.90695]
[1617346581460,0.01461507,1997.5,1997.4,62.1112]
[1617346581660,0.01461507,1997.5,1997.4,94.1112]
[1617346581861,6.43355175,1999.6,1997.4,94.1112]
[1617346582061,0.46763017,1998.1,1997.4,32.0]
[1617346582261,0.93526034,1998.5,1998.2,81.9252]
[1617346582461,0.93516403,1998.8,1998.2,115.5141]
[1617346582862,0.93513421,1998.9,1998.2,115.5141]
[1617346583064,0.93511096,1999.0,1998.7,2.90695]
[1617346583262,0.93511096,1999.0,1998.7,36.17585]
[1617346583462,10.0,1999.1,1998.7,36.17585]
[1617346583463,12.11410368,1999.1,1998.7,36.17585]
[1617346583863,10.0,1999.1,1998.7,36.17585]
[1617346585066,10.0,1999.1,1999.0,2.90695]
[1617346586566,10.0,1999.1,1999.0,32.90695]
[1617346587967,24.7235,1999.1,1999.0,32.90695]
[1617346590971,21.007,1999.1,1999.0,34.90695]
[1617346591170,12.7951,1999.1,1999.0,34.90695]
[1617346591369,10.6468,1999.1,1999.0,34.90695]
[1617346605590,10.6468,1999.1,1999.0,2.90695]
[1617346607190,13.55375,1999.1,1999.0,2.90695]
[1617346608091,13.55375,1999.1,1998.9,83.1171]
[1617346609193,13.55375,1999.1,1999.0,2.90695]
[1617346611597,13.55375,1999.1,1998.9,83.1171]
[1617346613397,13.55375,1999.1,1999.0,2.90695]
[1617346616598,13.55375,1999.1,1999.0,72.83145]
[1617346634912,13.55375,1999.1,1999.0,2.90695]
[1617346638116,13.55375,1999.1,1998.5,69.0001]
[1617346638917,0.29165928,1999.0,1998.5,69.0001]
[1617346639520,0.29165928,1999.0,1998.7,2.90695]
[1617346640519,10.6468,1999.1,1998.7,2.90695]
[1617346640520,0.29165876,1998.9,1998.7,2.90695]
[1617346641222,0.29165978,1999.0,1998.7,2.90695]
[1617346641420,0.29165978,1999.0,1998.9,2.90695]
[1617346643522,3.19860978,1999.0,1998.9,2.90695]
[1617346647326,3.84279114,1999.0,1998.9,2.90695]
[1617346647526,3.84279114,1999.0,1998.7,2.90695]
[1617346647726,2.90695,1999.0,1998.7,2.90695]
[1617346648125,1.82068423,1998.9,1998.7,2.90695]
[1617346649427,2.90695,1998.8,1998.7,2.90695]
[1617346649827,3.79124948,1998.8,1998.7,2.90695]
[1617346651230,4.49353018,1998.8,1998.7,2.90695]
[1617346652732,3.79124948,1998.8,1998.7,2.90695]
[1617346653531,0.88429948,1998.8,1998.7,2.90695]
[1617346653933,2.05695684,1998.9,1998.7,2.90695]
[1617346655431,2.90695,1998.8,1998.7,2.90695]
[1617346655631,4.07964204,1998.8,1998.7,2.90695]
[1617346655831,4.96391234,1998.8,1998.7,2.90695]
[1617346657832,6.63421234,1998.8,1998.7,2.90695]
[1617346658337,5.4615203,1998.8,1998.7,2.90695]
[1617346658733,7.51684422,1998.8,1998.7,2.90695]
[1617346659537,5.4615203,1998.8,1998.7,2.90695]
[1617346660138,5.4615203,1998.8,1997.2,2.0]
[1617346660538,0.29329353,1997.8,1997.5,59.2671]
[1617346660938,0.29329545,1997.7,1997.5,59.2671]
[1617346661538,0.29329545,1997.7,1997.6,2.90695]
[1617346661743,0.29329214,1997.8,1997.6,2.90695]
[1617346664143,0.88441902,1997.9,1997.6,2.90695]
[1617346664346,0.70515334,1997.8,1997.6,2.90695]
[1617346665845,14.25265334,1997.8,1997.6,2.90695]
[1617346666345,0.70515413,1997.7,1997.6,2.90695]
[1617346667445,14.25264889,1997.8,1997.6,2.90695]
[1617346668147,0.70515859,1997.7,1997.6,2.90695]
[1617346668348,1.96595859,1997.7,1997.6,2.90695]
[1617346669550,4.87290859,1997.7,1997.6,2.90695]
[1617346670150,4.16775,1997.7,1997.6,2.90695]
[1617346671452,2.90695,1997.7,1997.6,2.90695]
[1617346671653,14.25213397,1997.8,1997.6,2.90695]
[1617346672154,13.5475,1997.8,1997.6,2.90695]
[1617346674155,14.25214022,1997.8,1997.6,2.90695]
[1617346674756,13.5475,1997.8,1997.6,2.90695]
[1617346676254,0.29350149,1997.7,1997.6,2.90695]
[1617346676855,13.5475,1997.8,1997.6,2.90695]
[1617346686661,14.25174526,1997.8,1997.6,2.90695]
[1617346687063,0.70485487,1997.7,1997.6,2.90695]
[1617346690966,14.25231373,1997.8,1997.6,2.90695]
[1617346692767,14.25231373,1997.8,1997.6,4.90695]
[1617346692970,14.25231373,1997.8,1997.6,2.90695]
[1617346693568,13.5475,1997.8,1997.6,32.90695]
[1617346693769,13.5475,1997.8,1997.6,34.90695]
[1617346693968,13.84111991,1997.8,1997.6,34.90695]
[1617346697073,13.5475,1997.8,1997.6,34.90695]
[1617346702075,13.8412695,1997.8,1997.6,34.90695]
[1617346707383,13.8412695,1997.8,1997.6,4.90695]
[1617346707983,13.8412695,1997.8,1997.7,61.4162]
[1617346708184,13.8412695,1997.8,1997.7,63.4162]
[1617346710293,13.8412695,1997.8,1997.7,61.4162]
[1617346710995,13.8412695,1997.8,1997.6,2.90695]
[1617346711193,14.01769746,1997.8,1997.6,2.90695]
[1617346711593,0.2938741,1997.7,1997.6,2.90695]
[1617346712395,14.01769746,1997.8,1997.6,2.90695]
[1617346712396,14.25288506,1997.8,1997.6,2.90695]
[1617346712595,14.25288506,1997.8,1997.7,70.4385]
[1617346713095,13.5475,1997.8,1997.7,70.4385]
[1617346715800,14.25303337,1997.8,1997.7,70.4385]
[1617346716699,14.25303337,1997.8,1997.6,2.90695]
[1617346717701,0.47034074,1997.7,1997.6,2.90695]
[1617346720503,14.25303104,1997.8,1997.6,2.90695]
[1617346723709,14.48826539,1997.8,1997.6,2.90695]
[1617346724110,2.90695,1997.7,1997.4,62.65995]
[1617346724309,3.84777228,1997.7,1997.4,2.90695]
[1617346724709,72.45354205,1997.6,1997.4,2.90695]
[1617346725211,1.82534205,1997.6,1997.4,2.90695]
[1617346725413,0.88453008,1997.5,1997.4,2.90695]
[1617346725823,1.82536613,1997.6,1997.4,2.90695]
[1617346726215,4.73233375,1997.5,1997.4,2.90695]
[1617346728915,75.2448751,1997.5,1997.4,2.90695]
[1617346729315,76.42431348,1997.5,1997.4,2.90695]
[1617346730617,77.60078552,1997.5,1997.4,2.90695]
[1617346732824,80.383,1997.4,1995.8,80.383]
[1617346733023,81.6238,1997.4,1995.8,80.383]
[1617346733223,0.29416409,1996.4,1995.8,80.383]
[1617346733424,2.08976409,1996.4,1995.4,30.0]
[1617346733625,80.383,1996.2,1995.4,30.0]
[1617346733824,80.383,1996.2,1995.5,2.0]
[1617346734227,80.383,1996.2,1996.1,2.90695]
[1617346734425,15.17289312,1996.3,1996.1,2.90695]
[1617346735225,14.8787,1996.3,1996.1,2.90695]
[1617346741830,16.6267,1996.3,1996.1,2.90695]
[1617346748139,14.8787,1996.3,1996.1,2.90695]
[1617346756448,2.90695,1996.2,1996.1,2.90695]
[1617346760453,2.90695,1996.2,1995.9,2.90695]
[1617346760654,4.75735,1996.2,1995.9,2.90695]
[1617346762555,1.8504,1996.2,1996.1,2.90695]
[1617346762756,14.8787,1996.3,1996.1,2.90695]
[1617346764459,2.90695,1996.2,1996.1,2.90695]
[1617346766462,2.90695,1996.2,1995.9,2.90695]
[1617346768462,2.90695,1996.0,1995.9,2.90695]
[1617346776373,1.90705,1996.0,1995.9,2.90695]
[1617346778278,59.81905,1996.0,1995.9,2.90695]
[1617346782385,58.81915,1996.0,1995.9,2.90695]
[1617346782585,57.912,1996.0,1995.9,2.90695]
[1617346783386,57.1771,1996.0,1995.9,2.90695]
[1617346785590,2.90695,1996.2,1995.9,2.90695]
[1617346785799,66.04615,1996.2,1995.9,2.90695]
[1617346786597,66.04615,1996.2,1996.1,2.90695]
[1617346789496,65.04625,1996.2,1996.1,2.90695]
[1617346793007,1.90705,1996.2,1996.1,2.90695]
[1617346794609,1.96551615,1996.2,1996.1,2.90695]
[1617346795009,1.90705,1996.2,1996.1,2.90695]
[1617346795609,3.90705,1996.2,1996.1,2.90695]
[1617346796410,3.22715,1996.2,1996.1,2.90695]
[1617346797011,3.51950085,1996.2,1996.1,2.90695]
[1617346797411,2.56460085,1996.2,1996.1,2.90695]
[1617346799716,2.27225,1996.2,1996.1,2.90695]
[1617346801134,2.33071847,1996.2,1996.1,2.90695]
[1617346801425,2.27225,1996.2,1996.1,2.90695]
[1617346801824,2.33070376,1996.2,1996.1,2.90695]
[1617346803424,1.74077568,1996.2,1996.1,2.90695]
[1617346804525,1.74077568,1996.2,1996.1,76.86475]
[1617346804725,4.64772568,1996.2,1996.1,76.86475]
[1617346804925,4.64772568,1996.2,1996.1,78.41765]
[1617346805328,4.47206256,1996.2,1996.1,78.41765]
[1617346805727,3.19971256,1996.2,1996.1,78.41765]
[1617346806729,3.19971256,1996.2,1996.1,4.45985]
[1617346806928,3.19971256,1996.2,1996.1,2.90695]
[1617346807729,81.99585,1996.2,1996.1,2.90695]
[1617346808430,82.28859464,1996.2,1996.1,2.90695]